Cogmind - Beta 17.1 @@@ ROGUE MODE // 2026.09.04 @ 18:39:31 Player: Avari3l Result: Destroyed by G-34 Mercenary with Small Laser Performance ------------- Evolutions (0) 0 Regions Visited (4) 800 Robots Destroyed (20) 100 Value Destroyed (414) 414 Prototype IDs (23) 460 Alien Tech Used (0) 0 Bonus (300) 300 TOTAL SCORE: 2074 Bonus ------- Aligned with FarCom 300 Cogmind --------- Core Integrity 0/250 Matter 267/300 Energy 237/250 System Corruption 0% Temperature Hot (258) Movement Rolling (90) Location -9/Mines Parts ------- > --- POWER (1) -------- Ion Engine > --- PROPULSION (2) --- Armored Wheel Armored Wheel > --- UTILITY (2) ------ Medium Storage Unit Terrain Scanner > --- WEAPON (2) ------- Particle Gun Beam Cannon > --- INVENTORY (10) --- Armored Wheel Armored Wheel Improved Heat Sink ECM Suite ECM Suite Utility Shielding Skeleton Box Heavy EM Pulse Gun Grenade Launcher Mining Laser Peak State ------------ > --- POWER ------------ Ion Engine > --- PROPULSION ------- Armored Wheel Armored Wheel > --- UTILITY ---------- Improved Heat Sink Medium Storage Unit > --- WEAPON ----------- Particle Gun Beam Cannon > --- INVENTORY -------- Ion Engine Aluminum Leg Aluminum Leg Terrain Scanner ECM Suite ECM Suite Utility Shielding Particle Gun Grenade Launcher Mining Laser [Rating: 13] Favorites ----------- Power Ion Engine Engine Ion Engine Propulsion Light Treads Treads Light Treads Leg Aluminum Leg Wheel Armored Wheel Utility Medium Storage Unit Device Improved Heat Sink Storage Medium Storage Unit Protection Power Shielding Weapon Beam Cannon Energy Gun Medium Laser Energy Cannon Beam Cannon Launcher Grenade Launcher Build | -11 -10 -10 -10 -9 ------- Run | Yrd Mat Min Exi Min Slots Evolved . | . . . . . Power . | . . . . . Propulsion . | . . . . . Utility . | . . . . . Weapon . | . . . . . Parts Attached 26 | 7 16 3 . . Power 4 | 1 2 1 . . Engine 4 | 1 2 1 . . Core . | . . . . . Reactor . | . . . . . Propulsion 9 | 2 7 . . . Treads 4 | 2 2 . . . Leg 3 | . 3 . . . Wheel 2 | . 2 . . . Hover . | . . . . . Flight . | . . . . . Utility 6 | 2 3 1 . . Device 3 | 1 1 1 . . Storage 2 | 1 1 . . . Processor . | . . . . . Hackware . | . . . . . Protection 1 | . 1 . . . Artifact . | . . . . . Weapon 7 | 2 4 1 . . Energy Gun 5 | 2 3 . . . Energy Cannon 1 | . 1 . . . Ballistic Gun . | . . . . . Ballistic Cannon . | . . . . . Launcher 1 | . . 1 . . Special Weapon . | . . . . . Impact Weapon . | . . . . . Slashing Weapon . | . . . . . Piercing Weapon . | . . . . . Special Melee Weapon . | . . . . . Unidentified Prototypes . | . . . . . Parts Lost 5 | . 4 1 . . Power 3 | . 2 1 . . Propulsion . | . . . . . Utility 1 | . 1 . . . Weapon 1 | . 1 . . . Highest Loss Streak 3 | . 3 1 . . To Critical Strikes . | . . . . . Average Backups 8 | 2 8 9 10 10 Power . | . . . . . Propulsion 1 | 1 1 2 2 2 Utility 3 | . 3 4 4 4 Weapon 2 | . 2 3 3 3 Tool/Special . | . . . . . Unused Backups 14 | . 6 . 1 7 Power 1 | . . . 1 . Propulsion 4 | . 2 . . 2 Utility 4 | . 1 . . 3 Weapon 4 | . 3 . . 1 Tool/Special 1 | . . . . 1 Average Slot Usage (%) 98 | . 97 100 100 100 Engine 12 | . 11 14 14 14 Treads 12 | . 18 . . . Leg 5 | . 8 . . . Wheel 9 | . . 28 28 28 Device 12 | . 12 14 14 14 Storage 14 | . 14 14 14 14 Protection 1 | . 1 . . . Energy Gun 19 | . 21 14 14 14 Energy Cannon 8 | . 6 11 14 14 Peak Build Rating 13 | 7 13 13 12 12 Average Rating 9 | 4 9 11 11 12 On Entrance 8 | . 7 13 11 12 Avg Prop Armor Cover (%) . | . . . . . Naked Turns . | . . . . . Heaviest Build 22 | 12 22 22 22 . Greatest Support 40 | 40 40 24 24 . Greatest Overweight (x) 1 | . 1 . . . Average Overweight (x) . | . . . . . Largest Inventory Capacity 10 | 8 10 10 10 10 Average Capacity 9 | 7 8 10 10 10 Most Carried 10 | 5 10 10 10 10 Average Carried 8 | 2 8 9 9 10 Final Capacity 10 | 8 10 10 10 10 Final Carried 10 | 5 10 10 10 10 Class Distribution -------------------- 100% | Mutant Dominant Class ---------------- Mutant | -10/Materials Mutant | -10/Mines Mutant | -10/Exiles Mutant | -9/Mines Resources | -11 -10 -10 -10 -9 ----------- Run | Yrd Mat Min Exi Min Matter Collected 521 | 221 238 62 . . Remotely . | . . . . . Salvage Created 598 | 21 413 115 . 49 Parts 35 | 5 20 8 . 2 Haulers Intercepted 2 | . 2 . . . Recyclers Shooed . | . . . . . Parts Field Recycled . | . . . . . Retrieved Matter . | . . . . . Parts Self-Destructed . | . . . . . Prevented . | . . . . . Parts Restored . | . . . . . Kills | -11 -10 -10 -10 -9 ------- Run | Yrd Mat Min Exi Min Combat Hostiles Destroyed 17 | . 11 5 . 1 Guns 8 | . 6 1 . 1 Cannons 3 | . 2 1 . . AOE 4 | . 1 3 . . Classes Destroyed 5 | 1 3 . . 1 Tunneler 1 | 1 . . . . Hauler 2 | . 2 . . . Swarmer 9 | . 6 3 . . Grunt 7 | . 5 2 . . Brawler 1 | . . . . 1 Best Kill Streak 3 | 1 3 3 . 1 Combat Bots Only 3 | . 3 3 . 1 Max Kills in Single Turn 3 | 1 1 3 . 1 Gunslinging . | . . . . . Exploded 3 | . 1 3 . . Melee . | . . . . . Uniques/NPCs Destroyed . | . . . . . Combat | -11 -10 -10 -10 -9 -------- Run | Yrd Mat Min Exi Min Hostile Shots Fired 103 | . 84 6 . 13 Missed 18 | . 13 . . 5 Hits 85 | . 71 6 . 8 Projectile 85 | . 71 6 . 8 Critical Strikes 1 | . 1 . . . Damage Taken 1071 | . 863 122 . 86 Core 255 | . 160 60 . 35 Absorbed by Shields . | . . . . . Core Remaining (%) 100 | 100 . . . . Volleys Fired 53 | 1 43 5 . 4 Largest 2 | 2 2 2 . 2 Hottest 125 | 90 105 125 . 125 Shots Fired 105 | 2 86 9 . 8 Gun 83 | 2 73 4 . 4 Cannon 21 | . 13 4 . 4 Launcher 1 | . . 1 . . Special . | . . . . . Kinetic . | . . . . . Thermal 85 | 2 67 8 . 8 Explosive 1 | . . 1 . . Electromagnetic 19 | . 19 . . . Robot Hit Streak 12 | 1 12 5 . 7 Robot Miss Streak 4 | . 4 1 . 1 Penetration Max . | . . . . . Secondary Targets 1 | . 1 . . . Max Gunslinging Chain 1 | . 1 . . . Shots Hit Robots 63 | 1 50 6 . 6 Core Hits 25 | 1 16 6 . 2 Critical Kills . | . . . . . Critical Parts Destroyed . | . . . . . Critical Strikes 2 | . 2 . . . Burn 2 | . 2 . . . Melee Attacks . | . . . . . Impact . | . . . . . Slashing . | . . . . . Piercing . | . . . . . Sneak Attacks . | . . . . . Combat Hostiles . | . . . . . Follow-up Attacks . | . . . . . Damage Inflicted 1054 | 12 747 193 . 102 Guns 639 | 12 531 30 . 66 Cannons 263 | . 158 69 . 36 Explosions 152 | . 58 94 . . Melee . | . . . . . Ramming . | . . . . . Kinetic . | . . . . . Thermal 789 | 12 576 99 . 102 Explosive 94 | . . 94 . . Electromagnetic 171 | . 171 . . . Impact . | . . . . . Slashing . | . . . . . Piercing . | . . . . . Highest Corruption . | . . . . . Average Corruption . | . . . . . Corruption Purged . | . . . . . Corruption Blocked . | . . . . . Overload Shots . | . . . . . Overflow Damage 8 | . 8 . . . Projectiles . | . . . . . Explosions 8 | . 8 . . . Melee . | . . . . . Knockbacks . | . . . . . Impact . | . . . . . Kinetic . | . . . . . Secondary . | . . . . . Self-Inflicted Damage 80 | . 40 40 . . Shots 2 | . 1 1 . . Rammed . | . . . . . Targets Rammed . | . . . . . Kicked . | . . . . . Crushed . | . . . . . Highest Temperature 438 | 30 438 153 . 246 Average Temperature 170 | 17 184 89 . 135 Received Heat Transfer 423 | . 339 36 . 48 Effects 5 | . 5 . . . Interference 1 | . 1 . . . Matter Decay 2 | . 2 . . . Damage (major) 2 | . 2 . . . Siege Activations . | . . . . . Martial Activations . | . . . . . Shielding Activations . | . . . . . Robots Disrupted . | . . . . . Combat Hostiles . | . . . . . Robots Corrupted . | . . . . . Combat Hostiles . | . . . . . Parts Fried . | . . . . . Impact Corruptions . | . . . . . Robots Melted 2 | . 2 . . . Combat Hostiles 2 | . 2 . . . Parts Melted 1 | . 1 . . . Heat Transferred 2053 | 37 1572 222 . 222 Parts Sabotaged . | . . . . . Parts Stolen . | . . . . . Parts Stripped . | . . . . . Power Chain Reactions 1 | . 1 . . . Alert | -11 -10 -10 -10 -9 ------- Run | Yrd Mat Min Exi Min Maximum Alert Level . | . . . . . Low Security (%) 100 | 100 100 100 . 100 Level 1 . | . . . . . Level 2 . | . . . . . Level 3 . | . . . . . Level 4 . | . . . . . Level 5 . | . . . . . High Security . | . . . . . Max Security . | . . . . . Peak Influence 110 | 5 88 110 . 30 Initial 22 | . . 22 . . Average 25 | . 22 54 . 3 Influence Increases 514 | 5 351 128 . 30 Destroy 0b10 Robot/C 340 | . 220 100 . 20 Destroy 0b10 Robot/NC 15 | 5 10 . . . Destroy Leader 84 | . 54 20 . 10 Successful Hack 19 | . 19 . . . Destroy Structure 11 | . 3 8 . . Lose Combat Pursuer 45 | . 45 . . . Influence Decreases 484 | 5 293 156 30 . Entered New Map 66 | . . 36 30 . Time Decay 368 | 5 253 110 . . Lost Part 50 | . 40 10 . . Squads Dispatched 1 | . 1 . . . Investigation . | . . . . . Extermination . | . . . . . Reinforcement 1 | . 1 . . . Assault . | . . . . . Garrison . | . . . . . Intercept . | . . . . . Searches Triggered . | . . . . . Construction Impeded . | . . . . . Haulers Reinforced . | . . . . . Active Scanning Responses . | . . . . . Cargo Convoy Interrupts . | . . . . . Stealth | -11 -10 -10 -10 -9 --------- Run | Yrd Mat Min Exi Min Distress Signals 1 | . 1 . . . Communications Jammed . | . . . . . Distress Signals . | . . . . . Times Spotted 31 | . 23 5 . 3 Peak Tracking Total 4 | . 4 3 . 3 Tactical Retreats 2 | . 2 . . . Traps | -11 -10 -10 -10 -9 ------- Run | Yrd Mat Min Exi Min Traps Triggered 1 | . 1 . . . Indirectly . | . . . . . Trap Hack Attempts . | . . . . . Triggered . | . . . . . Disarmed 6 | . 6 . . . Reprogrammed . | . . . . . Reused . | . . . . . Traps Extracted . | . . . . . Installed . | . . . . . Triggered . | . . . . . Machines | -11 -10 -10 -10 -9 ---------- Run | Yrd Mat Min Exi Min Machines Disabled . | . . . . . Max in Single Turn . | . . . . . Machines Repaired . | . . . . . Machines Dismantled . | . . . . . Machines Sabotaged . | . . . . . Overloaded Fab Kills . | . . . . . Hacking | -11 -10 -10 -10 -9 --------- Run | Yrd Mat Min Exi Min Machines Accessed 9 | . 8 . 1 . Terminals 6 | . 6 . . . Fabricators . | . . . . . Repair Stations 1 | . 1 . . . Recycling Units 1 | . 1 . . . Scanalyzers . | . . . . . Garrison Access . | . . . . . Total Hacks 28 | . 27 . 1 . Successful 13 | . 12 . 1 . Failed 15 | . 15 . . . Catastrophic 2 | . 2 . . . Database Lockouts . | . . . . . Manual 12 | . 11 . 1 . Terminals 21 | . 21 . . . Fabricators . | . . . . . Repair Stations 3 | . 3 . . . Recycling Units 3 | . 3 . . . Scanalyzers . | . . . . . Garrison Access . | . . . . . Terminal Hacks 7 | . 6 . 1 . Part Schematic 1 | . 1 . . . Branch Access Points 1 | . 1 . . . Locate Traps 3 | . 3 . . . Disarm Traps 1 | . 1 . . . Proto ID Catalog 1 | . . . 1 . Fabricator Hacks . | . . . . . Repair Station Hacks 1 | . 1 . . . Refit 1 | . 1 . . . Recycling Unit Hacks 2 | . 2 . . . Report Inventory 1 | . 1 . . . Retrieve Components 1 | . 1 . . . Scanalyzer . | . . . . . Garrison Access Hacks . | . . . . . Unauthorized Hacks 3 | . 3 . . . Terminals 3 | . 3 . . . Botnet 3 | . 3 . . . Fabricators . | . . . . . Repair Stations . | . . . . . Recycling Units . | . . . . . Scanalyzers . | . . . . . Garrison Access . | . . . . . Data Cores Recovered . | . . . . . Used . | . . . . . Hacking Detections 7 | . 7 . . . Full Trace Events . | . . . . . Feedback Events . | . . . . . Feedback Blocked . | . . . . . Robot Schematics Acquired . | . . . . . Robots Built . | . . . . . Authchips . | . . . . . Time . | . . . . . Total Robot Build Rating . | . . . . . Part Schematics Acquired 1 | . 1 . . . Parts Built . | . . . . . Authchips . | . . . . . Time . | . . . . . Total Part Build Rating . | . . . . . Part Studies Acquired . | . . . . . Parts Repaired . | . . . . . Time . | . . . . . Parts Recycled . | . . . . . Recycled Matter . | . . . . . Retrieved Matter . | . . . . . Retrieved Components 5 | . 5 . . . Parts Scanalyzed . | . . . . . Part Schematics Acquired . | . . . . . Parts Damaged . | . . . . . Bothacking | -11 -10 -10 -10 -9 ------------ Run | Yrd Mat Min Exi Min Used RIF Installer . | . . . . . Robots Hacked . | . . . . . Non-combat . | . . . . . Combat . | . . . . . Robot Hacks Applied . | . . . . . Relay Couplers Released . | . . . . . Fabnet Peak Effective % . | . . . . . Robots Rewired . | . . . . . Allies Hacked . | . . . . . Hacks Repelled . | . . . . . Allies | -11 -10 -10 -10 -9 -------- Run | Yrd Mat Min Exi Min Total Allies . | . . . . . Largest Group . | . . . . . Highest-Rated Group . | . . . . . Highest-Rated Ally . | . . . . . Total Orders . | . . . . . Ally Attacks . | . . . . . Total Damage . | . . . . . Kills . | . . . . . Allies Corrupted . | . . . . . Allies Melted . | . . . . . Intel | -11 -10 -10 -10 -9 ------- Run | Yrd Mat Min Exi Min Active Infowar (turns) 863 | 39 367 192 255 10 Terrain 457 | . . 192 255 10 Seismic 406 | 39 367 . . . Robot Analysis Total . | . . . . . Derelict Logs Recovered 1 | . . 1 . . Drone Launches . | . . . . . Drone Recoveries . | . . . . . Exploration | -11 -10 -10 -10 -9 ------------- Run | Yrd Mat Min Exi Min Turns Passed 1741 | 113 1138 225 255 10 Spaces Moved 1174 | 60 614 218 282 . Core 5 | 5 . . . . Treads 437 | 55 382 . . . Legs 204 | . 204 . . . Wheels 528 | . 28 218 282 . Hover . | . . . . . Flight . | . . . . . Fastest Speed 50 | 50 90 90 90 . Average Speed 124 | 150 149 90 90 . Slowest Speed 190 | 160 190 90 90 . Overloaded Moves . | . . . . . Propulsion Burnouts . | . . . . . Robots Hopped . | . . . . . Potential Cave-ins . | . . . . . Cave-ins Triggered . | . . . . . Exploration Rate (%) 37 | 4 89 35 60 1 Regions Visited 4 Branch Regions 3 Pre-discovered Areas 1 | . . 1 . . Known Exits Taken 1 | . 1 . . . Unknown Exits Taken 3 | 1 . 1 1 . Scrap Searched . | . . . . . Spaces Dug . | . . . . . Terrain Destroyed 10 | . 2 8 . . Melee . | . . . . . Projectile . | . . . . . AOE 10 | . 2 8 . . Terrain Rammed . | . . . . . Walls Destroyed . | . . . . . Machines Disabled . | . . . . . Actions | -11 -10 -10 -10 -9 --------- Run | Yrd Mat Min Exi Min Total 1349 | 77 750 235 283 4 Wait 46 | 5 35 6 . . Move 1170 | 59 613 217 281 . Hop . | . . . . . Pick Up 27 | 5 20 1 1 . Fast Attach 12 | 7 5 . . . Attach 4 | . 3 1 . . Detach 2 | . 2 . . . Swap 14 | . 9 5 . . Drop 21 | . 20 . 1 . Fire 53 | 1 43 5 . 4 Melee . | . . . . . Ram . | . . . . . Kick . | . . . . . Crush . | . . . . . Escape Stasis . | . . . . . Rewire . | . . . . . Trap . | . . . . . Miscellaneous . | . . . . . Route ------- -11/Scrapyard -10/Materials (discovered 5 exits: [*Mat x3] / *Min x2) -10/Mines (discovered 3 exits: [*Mat x2] / *Exi) -10/Exiles (discovered 2 exits: [*Min x2]) -9/Mines History --------- Turn | Location | Event 3 | -11/Scrapyard | Discovered new exit (range 16) 114 | -11/Scrapyard | Entered Materials 303 | -10/Materials | Build established: Mutant 412 | -10/Materials | Discovered new exit (range 11) 488 | -10/Materials | Core integrity fell below 50% 514 | -10/Materials | Lost 3 parts (1p1u1w) 808 | -10/Materials | Discovered new exit (range 13) 981 | -10/Materials | Discovered new exit (range 11) 982 | -10/Materials | Identified exit to Mines 1086 | -10/Materials | Discovered new exit (range 3) 1252 | -10/Materials | Entered Mines 1325 | -10/Mines | Discovered new exit (range 9) 1331 | -10/Mines | Core integrity fell below 20% 1445 | -10/Mines | Learned location of Mines (-9) 1449 | -10/Mines | Discovered new exit (range 9) 1473 | -10/Mines | Deemed a non-threat by the Exiles lab entrance 1474 | -10/Mines | Discovered new exit (range 5) 1477 | -10/Mines | Entered Exiles 1491 | -10/Exiles | Discovered new exit (range 15) 1518 | -10/Exiles | Met 8R-AWN 1532 | -10/Exiles | Met EX-HEX 1558 | -10/Exiles | Met EX-BIN 1619 | -10/Exiles | Aligned with FarCom system 1620 | -10/Exiles | Given EX-Vault access code 1641 | -10/Exiles | Opened EX-Vault 1648 | -10/Exiles | Found Skeleton Box 1665 | -10/Exiles | Warned to stay clear of 0b10 Research branches 1680 | -10/Exiles | Exiles lab attacked by MAIN.C 1721 | -10/Exiles | Discovered new exit (range 14) 1732 | -10/Exiles | Left Exiles lab with Skeleton Box 1732 | -10/Exiles | Entered Mines 1733 | -9/Mines | Assembled infested the area 1742 | -9/Mines | Destroyed by G-34 Mercenary with Small Laser Last Messages --------------- that code around. We're gonna change it right after you leave. Most certainly not to something like 1234 which I did last time as a little joke and some thief managed to sneak in here and steal a few of HEX's prototypes. 01680_ EXILES: Incoming Unaware force detected on approach from Mines. Prepare for evacuation. 01715_ EXILES: Lab perimeter alert, evacuate immediately. 01721_ EXIT=FOUND LOCATION=UNKNOWN GOAL=ESCAPE 01732_ Receiving FarCom transmissions... 01733_ ALERT: Infestation in the mines, dispatching Demolisher response squad. 01734_ W1-DM0: "That was close. Too bad in all the rush we got split up from the others." 01736_ W1-DM0 knocked back. 01741_ B-36 Bruiser destroyed. Map ----- +----------------------------------------------------+ | ???????????????????????????????????????? | | ???????????????????????????????????????? | | ???????????????????????????????????????? | | ???????????????????????????????????????? | | ???????????????????????????????????????? | | ???????????????????????????????????????? | | ???????????????????????????????????????? | | ???????????????????????????????????????? | | ???????????????????????????????????????? | | ???????????????????????????????????????? | | ???????????????????????????????????????? | | ???????????????????????????????????????? | | ???????????????????????????????????????? | | ????????????????????????????????#??????? | | ?????????????????#????????????#????????? | | ???????????????????????????????????????? | | ???????????????????????????????????????? | | ??????????????????????????????????#????? | | ??????????????????????#????????????????? | | ??????????????????????# ???????????????? | | ??????????????????????# ????????????#??? | | ????????????????????###z####???????????? | | ????????????????????# g #???????????? | | ????????????????????# #???????????? | | ????????????????????# = #???????????? | | ??????????????? ????# =%@ #???????????? | | ????????????????????# g #???????????? | | ????????????????????########???????????? | | ???????????????????????????????????????? | | ?????????????????????????????????????#?? | | ???????????????????????????????????????? | | ???????????????????????????????????????? | | ???????????????????????????????????????? | | ???????????????????????????????????????? | | ???????????????????????????????????????? | | ???????????????????????????????????????? | | ???????????????????????????????????????? | | ???????????????????????????????????????? | | ???????????????????????????????????????? | | ???????????????????????????????????????? | | ???????????????????????????????????????? | | ???????????????????????????????????????? | | ???????????????????????????????????????? | | ???????????????????????????????????????? | | ???????????????????????????????????????? | | ???????????????????????????????????????? | | ???????????????????????????????????????? | | ???????????????????????????????????????? | | ???????????????????????????????????????? | | ???????????????????????????????????????? | +----------------------------------------------------+ Best States ------------- Heat Dissipation 39 Energy Generation 10 Energy Capacity 250 Matter Stores 300 Matter Capacity 300 Sight Range 16 Terrain Scan Range 14 Terrain Scan Density 10 Power Shielding 33 Evasion (%) 55 Recoil Reduction 2 Item Schematics ----------------- Med. Storage Unit | -10/Materials | Hacked Robot Schematics ------------------ None Fabricated ------------ Nothing Repaired ---------- Nothing Studied --------- None Alien Tech Used ----------------- None Achievements -------------- Fitting Room Challenges ------------ None Game ------ Seed GlidesysParticleSlayer Manual? 0 Play Time 00:27:02 Cumulative 119.6 hours Start 2026.09.04 @ 18:08:21 End 2026.09.04 @ 18:39:31 Sessions 1 Manual Loads 0 Difficulty Rogue Special Mode None Game No. 60 Rogue 60 Adventurer 0 Explorer 0 Win Type - Total 1 Types 1/0/0/0/0/0/0/0/0/0 Lore% 25 Gallery% 40 Achievement% 25 Wizard Run 0 Options --------- Layout 1 ASCII 0 Keyboard 0 Movement Numpad Keybinds 0 Fullscreen 1 Font 24/Smallcaps Map View 50x35 Zoom Use 0% Tactical HUD 1 Map Filters NONE Filters NONE Steam 1 RUN: c2e6a7e9-2731-41d4-822f-929c39914e06